[Event "January 2 Early 2024"]
[Site "https://www.chess.com"]
[Date "2024.01.02"]
[Round "2"]
[White "Gerbelli Neto, Eduardo"]
[Black "Syaputra, Arifa Rizki"]
[Result "0-1"]
[Board "150"]
[TimeControl "180+1"]
[WhiteFideId "2103281"]
[BlackFideId "7105100"]
[WhiteElo "2375"]
[BlackElo "2723"]
[WhiteTeam "BRA"]
[BlackTeam "INA"]
[WhiteClock "0:00:01"]
[BlackClock "0:00:15"]

1. e4 {[%clk 0:03:00]}  c5 {[%clk 0:02:57]} 2. Nc3 {[%clk 0:03:00]}  Nc6 {[%clk 0:02:57]} 3. f4 {[%clk 0:03:01]}  e6 {[%clk 0:02:57]} 4. Nf3 {[%clk 0:03:02]}  d5 {[%clk 0:02:58]} 5. Bb5 {[%clk 0:03:02]}  Ne7 {[%clk 0:02:49]} 6. exd5 {[%clk 0:03:01]}  exd5 {[%clk 0:02:49]} 7. Qe2 {[%clk 0:02:58]}  Bg4 {[%clk 0:02:15]} 8. Bxc6+ {[%clk 0:02:58]}  bxc6 {[%clk 0:02:15]} 9. O-O {[%clk 0:02:58]}  Qd6 {[%clk 0:01:52]} 10. d3 {[%clk 0:02:18]}  f6 {[%clk 0:01:18]} 11. b3 {[%clk 0:02:17]}  Bxf3 {[%clk 0:01:08]} 12. Qxf3 {[%clk 0:02:10]}  Kf7 {[%clk 0:01:09]} 13. Ba3 {[%clk 0:02:07]}  Nf5 {[%clk 0:00:51]} 14. Ne2 {[%clk 0:02:07]}  Re8 {[%clk 0:00:48]} 15. d4 {[%clk 0:01:43]}  Qe6 {[%clk 0:00:41]} 16. Rf2 {[%clk 0:01:27]}  cxd4 {[%clk 0:00:39]} 17. Bxf8 {[%clk 0:01:20]}  Rhxf8 {[%clk 0:00:40]} 18. Rd1 {[%clk 0:01:15]}  c5 {[%clk 0:00:38]} 19. Ng3 {[%clk 0:00:28]}  Nxg3 {[%clk 0:00:36]} 20. hxg3 {[%clk 0:00:28]}  Kg8 {[%clk 0:00:34]} 21. Rfd2 {[%clk 0:00:22]}  f5 {[%clk 0:00:32]} 22. c3 {[%clk 0:00:20]}  dxc3 {[%clk 0:00:29]} 23. Qxc3 {[%clk 0:00:21]}  d4 {[%clk 0:00:25]} 24. Qd3 {[%clk 0:00:18]}  Qe3+ {[%clk 0:00:23]} 25. Kf1 {[%clk 0:00:16]}  Qe4 {[%clk 0:00:18]} 26. b4 {[%clk 0:00:15]}  Qxd3+ {[%clk 0:00:14]} 27. Rxd3 {[%clk 0:00:16]}  cxb4 {[%clk 0:00:15]} 28. Rxd4 {[%clk 0:00:16]}  Re3 {[%clk 0:00:13]} 29. Kf2 {[%clk 0:00:14]}  Ra3 {[%clk 0:00:14]} 30. R1d2 {[%clk 0:00:14]}  a5 {[%clk 0:00:14]} 31. Rd5 {[%clk 0:00:14]}  g6 {[%clk 0:00:14]} 32. Rb5 {[%clk 0:00:14]}  Rf7 {[%clk 0:00:12]} 33. Rc2 {[%clk 0:00:09]}  Kg7 {[%clk 0:00:13]} 34. Kg1 {[%clk 0:00:07]}  Rxg3 {[%clk 0:00:12]} 35. Rxa5 {[%clk 0:00:07]}  Rg4 {[%clk 0:00:12]} 36. Rc4 {[%clk 0:00:06]}  Rb7 {[%clk 0:00:11]} 37. Ra4 {[%clk 0:00:05]}  b3 {[%clk 0:00:12]} 38. axb3 {[%clk 0:00:06]}  Rxb3 {[%clk 0:00:13]} 39. Rc2 {[%clk 0:00:06]}  Rbg3 {[%clk 0:00:12]} 40. Ra7+ {[%clk 0:00:06]}  Kh6 {[%clk 0:00:12]} 41. Rf2 {[%clk 0:00:06]}  Rd3 {[%clk 0:00:11]} 42. Kf1 {[%clk 0:00:05]}  Rd1+ {[%clk 0:00:11]} 43. Ke2 {[%clk 0:00:06]}  Rd4 {[%clk 0:00:11]} 44. Ke3 {[%clk 0:00:05]}  Re4+ {[%clk 0:00:12]} 45. Kd3 {[%clk 0:00:05]}  Rexf4 {[%clk 0:00:12]} 46. Raa2 {[%clk 0:00:05]}  Rxf2 {[%clk 0:00:12]} 47. Rxf2 {[%clk 0:00:06]}  Kg5 {[%clk 0:00:13]} 48. Ke3 {[%clk 0:00:06]}  h5 {[%clk 0:00:14]} 49. Kf3 {[%clk 0:00:06]}  h4 {[%clk 0:00:14]} 50. Ra2 {[%clk 0:00:06]}  Rg3+ {[%clk 0:00:15]} 51. Kf2 {[%clk 0:00:06]}  Kg4 {[%clk 0:00:16]} 52. Ra4+ {[%clk 0:00:05]}  f4 {[%clk 0:00:16]} 53. Ra6 {[%clk 0:00:06]}  g5 {[%clk 0:00:16]} 54. Rg6 {[%clk 0:00:06]}  Rc3 {[%clk 0:00:16]} 55. Rg8 {[%clk 0:00:06]}  Rc2+ {[%clk 0:00:16]} 56. Kg1 {[%clk 0:00:06]}  Rc5 {[%clk 0:00:16]} 57. Kf2 {[%clk 0:00:06]}  Rf5 {[%clk 0:00:16]} 58. Rg7 {[%clk 0:00:06]}  f3 {[%clk 0:00:16]} 59. gxf3+ {[%clk 0:00:05]}  Rxf3+ {[%clk 0:00:17]} 60. Kg2 {[%clk 0:00:06]}  h3+ {[%clk 0:00:17]} 61. Kh2 {[%clk 0:00:07]}  Rf2+ {[%clk 0:00:16]} 62. Kg1 {[%clk 0:00:07]}  Ra2 {[%clk 0:00:15]} 63. Rg8 {[%clk 0:00:07]}  Kh4 {[%clk 0:00:16]} 64. Rg7 {[%clk 0:00:06]}  g4 {[%clk 0:00:15]} 65. Rg6 {[%clk 0:00:06]}  Kg3 {[%clk 0:00:15]} 66. Kf1 {[%clk 0:00:01]}  h2 {[%clk 0:00:15]} 0-1

[Event "January 2 Early 2024"]
[Site "https://www.chess.com"]
[Date "2024.01.02"]
[Round "2"]
[White "Mgeladze, Tamaz"]
[Black "Fernandez Garcia, Gumersindo"]
[Result "1-0"]
[Board "152"]
[TimeControl "180+1"]
[WhiteFideId "13601202"]
[BlackFideId "24516740"]
[WhiteElo "2701"]
[BlackElo "2370"]
[WhiteTeam "GEO"]
[BlackTeam "ESP"]
[WhiteClock "0:00:26"]
[BlackClock "0:00:06"]

1. c4 {[%clk 0:03:00]}  e5 {[%clk 0:02:57]} 2. g3 {[%clk 0:03:00]}  Nf6 {[%clk 0:02:55]} 3. Bg2 {[%clk 0:03:00]}  c6 {[%clk 0:02:56]} 4. Nf3 {[%clk 0:03:00]}  e4 {[%clk 0:02:56]} 5. Nd4 {[%clk 0:03:01]}  d5 {[%clk 0:02:57]} 6. cxd5 {[%clk 0:03:01]}  Qxd5 {[%clk 0:02:57]} 7. Nb3 {[%clk 0:03:02]}  Qh5 {[%clk 0:02:57]} 8. h3 {[%clk 0:03:02]}  Na6 {[%clk 0:02:47]} 9. Nc3 {[%clk 0:03:01]}  Qg6 {[%clk 0:02:45]} 10. Qc2 {[%clk 0:02:58]}  Nb4 {[%clk 0:02:43]} 11. Qb1 {[%clk 0:02:58]}  e3 {[%clk 0:02:34]} 12. Qxg6 {[%clk 0:02:52]}  hxg6 {[%clk 0:02:34]} 13. O-O {[%clk 0:02:45]}  exf2+ {[%clk 0:02:25]} 14. Rxf2 {[%clk 0:02:46]}  Bxh3 {[%clk 0:02:24]} 15. d3 {[%clk 0:02:47]}  Ng4 {[%clk 0:02:10]} 16. Rf4 {[%clk 0:02:37]}  Nc2 {[%clk 0:01:56]} 17. Bxh3 {[%clk 0:02:32]}  Rxh3 {[%clk 0:01:36]} 18. Rxg4 {[%clk 0:02:32]}  Nxa1 {[%clk 0:01:37]} 19. Nxa1 {[%clk 0:02:29]}  Bc5+ {[%clk 0:01:31]} 20. Kg2 {[%clk 0:02:30]}  Rh5 {[%clk 0:01:30]} 21. Re4+ {[%clk 0:02:24]}  Kd7 {[%clk 0:01:28]} 22. Nb3 {[%clk 0:02:25]}  Bb6 {[%clk 0:01:24]} 23. Be3 {[%clk 0:02:24]}  Rah8 {[%clk 0:01:24]} 24. Bxb6 {[%clk 0:02:14]}  axb6 {[%clk 0:01:23]} 25. Nd4 {[%clk 0:02:11]}  Rh2+ {[%clk 0:01:20]} 26. Kf3 {[%clk 0:02:10]}  Rh1 {[%clk 0:01:20]} 27. Ke3 {[%clk 0:02:02]}  R8h3 {[%clk 0:01:13]} 28. Rg4 {[%clk 0:02:00]}  b5 {[%clk 0:01:09]} 29. Ne4 {[%clk 0:01:58]}  Rb1 {[%clk 0:01:08]} 30. Nc5+ {[%clk 0:01:45]}  Kc7 {[%clk 0:01:07]} 31. b3 {[%clk 0:01:42]}  Rb2 {[%clk 0:01:03]} 32. Re4 {[%clk 0:01:29]}  Rxg3+ {[%clk 0:00:53]} 33. Kf2 {[%clk 0:01:29]}  Rh3 {[%clk 0:00:53]} 34. b4 {[%clk 0:01:19]}  Rh2+ {[%clk 0:00:38]} 35. Kg3 {[%clk 0:01:19]}  Rh5 {[%clk 0:00:29]} 36. Re7+ {[%clk 0:01:18]}  Kc8 {[%clk 0:00:27]} 37. Nxb7 {[%clk 0:01:13]}  Rg5+ {[%clk 0:00:20]} 38. Kf3 {[%clk 0:01:08]}  Rd5 {[%clk 0:00:15]} 39. Nxc6 {[%clk 0:01:03]}  Rd7 {[%clk 0:00:15]} 40. Na7+ {[%clk 0:00:48]}  Kc7 {[%clk 0:00:14]} 41. Nxb5+ {[%clk 0:00:48]}  Kc8 {[%clk 0:00:13]} 42. N7d6+ {[%clk 0:00:46]}  Kd8 {[%clk 0:00:12]} 43. Rxd7+ {[%clk 0:00:45]}  Kxd7 {[%clk 0:00:13]} 44. a3 {[%clk 0:00:42]}  f5 {[%clk 0:00:12]} 45. Nc4 {[%clk 0:00:39]}  Rb1 {[%clk 0:00:12]} 46. Nd4 {[%clk 0:00:37]}  Ke7 {[%clk 0:00:10]} 47. b5 {[%clk 0:00:37]}  Kf6 {[%clk 0:00:10]} 48. b6 {[%clk 0:00:37]}  g5 {[%clk 0:00:11]} 49. a4 {[%clk 0:00:35]}  g4+ {[%clk 0:00:11]} 50. Kg2 {[%clk 0:00:35]}  f4 {[%clk 0:00:11]} 51. a5 {[%clk 0:00:30]}  Kg5 {[%clk 0:00:10]} 52. a6 {[%clk 0:00:30]}  Ra1 {[%clk 0:00:07]} 53. b7 {[%clk 0:00:30]}  Rb1 {[%clk 0:00:06]} 54. a7 {[%clk 0:00:29]}  Rxb7 {[%clk 0:00:07]} 55. a8=Q {[%clk 0:00:29]}  Rf7 {[%clk 0:00:07]} 56. Qd5+ {[%clk 0:00:27]}  Kg6 {[%clk 0:00:06]} 57. Ne5+ {[%clk 0:00:26]} 1-0

[Event "January 2 Early 2024"]
[Site "https://www.chess.com"]
[Date "2024.01.02"]
[Round "2"]
[White "Manon-og, Ramon Jr."]
[Black "Gritsenko, Nikolai"]
[Result "0-1"]
[Board "154"]
[TimeControl "180+1"]
[WhiteFideId "5200776"]
[BlackFideId "14112493"]
[WhiteElo "2356"]
[BlackElo "2687"]
[WhiteTeam "PHI"]
[BlackTeam "UKR"]
[WhiteClock "0:01:41"]
[BlackClock "0:01:30"]

1. e4 {[%clk 0:03:00]}  d5 {[%clk 0:02:59]} 2. exd5 {[%clk 0:03:00]}  Nf6 {[%clk 0:02:59]} 3. Nc3 {[%clk 0:03:00]}  Nxd5 {[%clk 0:02:59]} 4. d4 {[%clk 0:03:01]}  Bf5 {[%clk 0:02:56]} 5. Nf3 {[%clk 0:03:01]}  e6 {[%clk 0:02:56]} 6. Bd3 {[%clk 0:03:01]}  Bxd3 {[%clk 0:02:56]} 7. Qxd3 {[%clk 0:03:02]}  Be7 {[%clk 0:02:56]} 8. O-O {[%clk 0:03:01]}  O-O {[%clk 0:02:55]} 9. Ne4 {[%clk 0:02:58]}  Nd7 {[%clk 0:02:52]} 10. c4 {[%clk 0:02:58]}  N5f6 {[%clk 0:02:52]} 11. b3 {[%clk 0:02:57]}  c5 {[%clk 0:02:49]} 12. Bb2 {[%clk 0:02:48]}  cxd4 {[%clk 0:02:42]} 13. Qxd4 {[%clk 0:02:48]}  Qc7 {[%clk 0:02:39]} 14. Rad1 {[%clk 0:02:44]}  Rfd8 {[%clk 0:02:38]} 15. h3 {[%clk 0:02:43]}  Nc5 {[%clk 0:02:28]} 16. Nxf6+ {[%clk 0:02:10]}  Bxf6 {[%clk 0:02:25]} 17. Qxf6 {[%clk 0:02:10]}  gxf6 {[%clk 0:02:25]} 18. Bxf6 {[%clk 0:02:11]}  Rxd1 {[%clk 0:02:18]} 19. Rxd1 {[%clk 0:02:12]}  Nd7 {[%clk 0:02:17]} 20. Bc3 {[%clk 0:02:08]}  Rd8 {[%clk 0:02:10]} 21. Rd4 {[%clk 0:02:07]}  Nf8 {[%clk 0:02:04]} 22. Rg4+ {[%clk 0:02:01]}  Ng6 {[%clk 0:02:04]} 23. g3 {[%clk 0:02:01]}  Rd3 {[%clk 0:01:59]} 24. Be5 {[%clk 0:02:01]}  Qc6 {[%clk 0:01:47]} 25. Ne1 {[%clk 0:01:51]}  Rd1 {[%clk 0:01:45]} 26. Bc3 {[%clk 0:01:49]}  f5 {[%clk 0:01:42]} 27. Rg5 {[%clk 0:01:46]}  Qe4 {[%clk 0:01:33]} 28. Kf1 {[%clk 0:01:41]}  Qd3+ {[%clk 0:01:30]} 0-1

[Event "January 2 Early 2024"]
[Site "https://www.chess.com"]
[Date "2024.01.02"]
[Round "2"]
[White "Shohat, Yotam"]
[Black "Hajiyev, Kanan"]
[Result "0-1"]
[Board "157"]
[TimeControl "180+1"]
[WhiteFideId "2813955"]
[BlackFideId "13404148"]
[WhiteElo "2350"]
[BlackElo "2637"]
[WhiteTeam "ISR"]
[BlackTeam "AZE"]
[WhiteClock "0:00:09"]
[BlackClock "0:00:56"]

1. e4 {[%clk 0:02:10]}  c6 {[%clk 0:02:59]} 2. Nf3 {[%clk 0:02:09]}  d5 {[%clk 0:03:00]} 3. Nc3 {[%clk 0:02:09]}  a6 {[%clk 0:03:00]} 4. d4 {[%clk 0:02:02]}  Bg4 {[%clk 0:02:59]} 5. exd5 {[%clk 0:01:51]}  cxd5 {[%clk 0:03:00]} 6. h3 {[%clk 0:01:49]}  Bh5 {[%clk 0:03:00]} 7. g4 {[%clk 0:01:49]}  Bg6 {[%clk 0:03:01]} 8. Ne5 {[%clk 0:01:50]}  Nc6 {[%clk 0:03:01]} 9. h4 {[%clk 0:01:47]}  Nxe5 {[%clk 0:03:00]} 10. dxe5 {[%clk 0:01:47]}  h5 {[%clk 0:03:01]} 11. gxh5 {[%clk 0:01:30]}  Bxh5 {[%clk 0:02:59]} 12. Qxd5 {[%clk 0:01:29]}  Qxd5 {[%clk 0:02:59]} 13. Nxd5 {[%clk 0:01:29]}  O-O-O {[%clk 0:03:00]} 14. Nc3 {[%clk 0:01:03]}  e6 {[%clk 0:02:53]} 15. Be2 {[%clk 0:01:01]}  Bb4 {[%clk 0:02:51]} 16. Bd2 {[%clk 0:01:00]}  Ne7 {[%clk 0:02:42]} 17. f4 {[%clk 0:00:58]}  Nf5 {[%clk 0:02:37]} 18. Bxh5 {[%clk 0:00:53]}  Rxh5 {[%clk 0:02:37]} 19. O-O-O {[%clk 0:00:54]}  Rxh4 {[%clk 0:02:31]} 20. Rxh4 {[%clk 0:00:53]}  Nxh4 {[%clk 0:02:32]} 21. Ne4 {[%clk 0:00:53]}  Be7 {[%clk 0:02:27]} 22. Ba5 {[%clk 0:00:47]}  Rxd1+ {[%clk 0:02:26]} 23. Kxd1 {[%clk 0:00:48]}  Ng6 {[%clk 0:02:18]} 24. Bd2 {[%clk 0:00:47]}  Kd7 {[%clk 0:02:18]} 25. Ke2 {[%clk 0:00:47]}  Kc6 {[%clk 0:02:18]} 26. Kf3 {[%clk 0:00:47]}  Kd5 {[%clk 0:02:18]} 27. b3 {[%clk 0:00:44]}  Nh4+ {[%clk 0:02:17]} 28. Ke3 {[%clk 0:00:43]}  b5 {[%clk 0:01:44]} 29. Kd3 {[%clk 0:00:43]}  b4 {[%clk 0:01:31]} 30. c3 {[%clk 0:00:43]}  bxc3 {[%clk 0:01:28]} 31. Nxc3+ {[%clk 0:00:43]}  Kc6 {[%clk 0:01:29]} 32. Ne4 {[%clk 0:00:43]}  f5 {[%clk 0:01:26]} 33. exf6 {[%clk 0:00:43]}  gxf6 {[%clk 0:01:27]} 34. Bc3 {[%clk 0:00:42]}  f5 {[%clk 0:01:28]} 35. Ng5 {[%clk 0:00:40]}  Kd5 {[%clk 0:01:24]} 36. a4 {[%clk 0:00:35]}  Ng2 {[%clk 0:01:23]} 37. Nh3 {[%clk 0:00:32]}  Bd6 {[%clk 0:01:20]} 38. Bd2 {[%clk 0:00:32]}  Nh4 {[%clk 0:01:17]} 39. b4 {[%clk 0:00:31]}  Ng6 {[%clk 0:01:17]} 40. b5 {[%clk 0:00:21]}  axb5 {[%clk 0:01:16]} 41. axb5 {[%clk 0:00:22]}  Kc5 {[%clk 0:01:17]} 42. Ng5 {[%clk 0:00:21]}  Nf8 {[%clk 0:01:16]} 43. Bc3 {[%clk 0:00:19]}  Bxf4 {[%clk 0:01:14]} 44. Nf7 {[%clk 0:00:16]}  Kxb5 {[%clk 0:01:12]} 45. Bg7 {[%clk 0:00:17]}  Nd7 {[%clk 0:01:12]} 46. Nd8 {[%clk 0:00:16]}  e5 {[%clk 0:01:03]} 47. Ne6 {[%clk 0:00:15]}  Nc5+ {[%clk 0:01:03]} 48. Nxc5 {[%clk 0:00:13]}  Kxc5 {[%clk 0:01:04]} 49. Bf8+ {[%clk 0:00:12]}  Kd5 {[%clk 0:01:04]} 50. Bg7 {[%clk 0:00:12]}  e4+ {[%clk 0:01:05]} 51. Ke2 {[%clk 0:00:12]}  Bg5 {[%clk 0:01:04]} 52. Bb2 {[%clk 0:00:11]}  f4 {[%clk 0:01:04]} 53. Bg7 {[%clk 0:00:12]}  f3+ {[%clk 0:01:04]} 54. Kf2 {[%clk 0:00:12]}  Ke6 {[%clk 0:01:00]} 55. Kg3 {[%clk 0:00:11]}  Kf5 {[%clk 0:00:59]} 56. Bb2 {[%clk 0:00:12]}  Bf4+ {[%clk 0:00:59]} 57. Kf2 {[%clk 0:00:12]}  Kg4 {[%clk 0:00:59]} 58. Bf6 {[%clk 0:00:11]}  e3+ {[%clk 0:01:00]} 59. Kg1 {[%clk 0:00:11]}  e2 {[%clk 0:00:59]} 60. Bc3 {[%clk 0:00:12]}  Bg3 {[%clk 0:00:59]} 61. Kh1 {[%clk 0:00:09]}  f2 {[%clk 0:00:56]} 0-1

[Event "January 2 Early 2024"]
[Site "https://www.chess.com"]
[Date "2024.01.02"]
[Round "2"]
[White "Nayak Rajesh"]
[Black "Gubajdullin, Alexei"]
[Result "1-0"]
[Board "159"]
[TimeControl "180+1"]
[WhiteFideId "35017152"]
[BlackFideId "4141202"]
[WhiteElo "2349"]
[BlackElo "2601"]
[WhiteTeam "IND"]
[BlackTeam "RUS"]
[WhiteClock "0:00:46"]
[BlackClock "0:00:23"]

1. b3 {[%clk 0:02:57]}  c5 {[%clk 0:02:57]} 2. Bb2 {[%clk 0:02:58]}  Nc6 {[%clk 0:02:57]} 3. e4 {[%clk 0:02:59]}  e5 {[%clk 0:02:55]} 4. a4 {[%clk 0:02:56]}  Nf6 {[%clk 0:02:51]} 5. Nc3 {[%clk 0:02:56]}  Nd4 {[%clk 0:02:48]} 6. Bc4 {[%clk 0:02:54]}  d6 {[%clk 0:02:47]} 7. h3 {[%clk 0:02:53]}  Be6 {[%clk 0:02:47]} 8. d3 {[%clk 0:02:51]}  Be7 {[%clk 0:02:46]} 9. Nge2 {[%clk 0:02:52]}  O-O {[%clk 0:02:46]} 10. O-O {[%clk 0:02:52]}  Bxc4 {[%clk 0:02:46]} 11. dxc4 {[%clk 0:02:51]}  Nh5 {[%clk 0:02:45]} 12. Nd5 {[%clk 0:02:48]}  g6 {[%clk 0:02:39]} 13. Bxd4 {[%clk 0:02:38]}  cxd4 {[%clk 0:02:39]} 14. f4 {[%clk 0:02:37]}  Bh4 {[%clk 0:02:35]} 15. f5 {[%clk 0:02:34]}  Qg5 {[%clk 0:02:34]} 16. Qc1 {[%clk 0:02:31]}  Kh8 {[%clk 0:02:28]} 17. Qxg5 {[%clk 0:02:28]}  Bxg5 {[%clk 0:02:28]} 18. g4 {[%clk 0:02:24]}  Ng7 {[%clk 0:02:26]} 19. Kg2 {[%clk 0:02:23]}  Ne8 {[%clk 0:02:24]} 20. Kg3 {[%clk 0:02:18]}  Nf6 {[%clk 0:02:23]} 21. Nxf6 {[%clk 0:02:11]}  Bxf6 {[%clk 0:02:22]} 22. Nc1 {[%clk 0:02:12]}  Bg5 {[%clk 0:02:20]} 23. Nd3 {[%clk 0:02:12]}  a6 {[%clk 0:02:15]} 24. a5 {[%clk 0:02:09]}  Rac8 {[%clk 0:02:13]} 25. h4 {[%clk 0:02:05]}  Be3 {[%clk 0:02:13]} 26. Nb4 {[%clk 0:02:01]}  Bd2 {[%clk 0:02:04]} 27. Nd5 {[%clk 0:02:00]}  Rc5 {[%clk 0:02:03]} 28. fxg6 {[%clk 0:01:54]}  hxg6 {[%clk 0:02:03]} 29. Rf6 {[%clk 0:01:53]}  Rxa5 {[%clk 0:02:02]} 30. Rxa5 {[%clk 0:01:51]}  Bxa5 {[%clk 0:02:02]} 31. Rxd6 {[%clk 0:01:51]}  Bd2 {[%clk 0:01:57]} 32. Rd7 {[%clk 0:01:48]}  f5 {[%clk 0:01:57]} 33. gxf5 {[%clk 0:01:47]}  gxf5 {[%clk 0:01:57]} 34. Ne7 {[%clk 0:01:43]}  Be1+ {[%clk 0:01:50]} 35. Kf3 {[%clk 0:01:38]}  fxe4+ {[%clk 0:01:33]} 36. Kxe4 {[%clk 0:01:38]}  Rf2 {[%clk 0:01:34]} 37. h5 {[%clk 0:01:34]}  Rh2 {[%clk 0:01:27]} 38. Ng6+ {[%clk 0:01:20]}  Kg8 {[%clk 0:01:26]} 39. Nxe5 {[%clk 0:01:19]}  Rxh5 {[%clk 0:01:24]} 40. Rxb7 {[%clk 0:01:17]}  Bc3 {[%clk 0:01:23]} 41. Nd3 {[%clk 0:01:16]}  Rh2 {[%clk 0:01:21]} 42. c5 {[%clk 0:01:15]}  Rxc2 {[%clk 0:01:07]} 43. b4 {[%clk 0:01:13]}  Kf8 {[%clk 0:00:54]} 44. c6 {[%clk 0:01:11]}  Bd2 {[%clk 0:00:51]} 45. c7 {[%clk 0:01:09]}  Ke8 {[%clk 0:00:51]} 46. Ne5 {[%clk 0:01:05]}  Be1 {[%clk 0:00:33]} 47. Rb8+ {[%clk 0:01:04]}  Ke7 {[%clk 0:00:32]} 48. c8=Q {[%clk 0:01:03]}  Rxc8 {[%clk 0:00:32]} 49. Rxc8 {[%clk 0:01:04]}  Bxb4 {[%clk 0:00:32]} 50. Ra8 {[%clk 0:01:02]}  d3 {[%clk 0:00:26]} 51. Kxd3 {[%clk 0:00:57]}  Kd6 {[%clk 0:00:22]} 52. Nc4+ {[%clk 0:00:55]}  Kc5 {[%clk 0:00:22]} 53. Rxa6 {[%clk 0:00:56]}  Be1 {[%clk 0:00:23]} 54. Re6 {[%clk 0:00:55]}  Bg3 {[%clk 0:00:22]} 55. Rg6 {[%clk 0:00:54]}  Bf2 {[%clk 0:00:22]} 56. Nd2 {[%clk 0:00:55]}  Kd5 {[%clk 0:00:21]} 57. Ne4 {[%clk 0:00:54]}  Be1 {[%clk 0:00:21]} 58. Rg5+ {[%clk 0:00:49]}  Ke6 {[%clk 0:00:20]} 59. Kd4 {[%clk 0:00:49]}  Bh4 {[%clk 0:00:19]} 60. Rg6+ {[%clk 0:00:49]}  Kf7 {[%clk 0:00:18]} 61. Rc6 {[%clk 0:00:49]}  Be1 {[%clk 0:00:18]} 62. Ke5 {[%clk 0:00:49]}  Ba5 {[%clk 0:00:17]} 63. Kf5 {[%clk 0:00:48]}  Ke7 {[%clk 0:00:17]} 64. Ra6 {[%clk 0:00:45]}  Bb4 {[%clk 0:00:17]} 65. Ra7+ {[%clk 0:00:45]}  Kd8 {[%clk 0:00:17]} 66. Ke6 {[%clk 0:00:45]}  Kc8 {[%clk 0:00:18]} 67. Nd6+ {[%clk 0:00:44]}  Kb8 {[%clk 0:00:18]} 68. Rb7+ {[%clk 0:00:44]}  Ka8 {[%clk 0:00:18]} 69. Rxb4 {[%clk 0:00:44]}  Ka7 {[%clk 0:00:19]} 70. Kd7 {[%clk 0:00:44]}  Ka6 {[%clk 0:00:20]} 71. Kc6 {[%clk 0:00:44]}  Ka5 {[%clk 0:00:21]} 72. Rb1 {[%clk 0:00:44]}  Ka4 {[%clk 0:00:21]} 73. Kc5 {[%clk 0:00:44]}  Ka3 {[%clk 0:00:21]} 74. Kc4 {[%clk 0:00:44]}  Ka2 {[%clk 0:00:22]} 75. Rb3 {[%clk 0:00:44]}  Ka1 {[%clk 0:00:21]} 76. Kc3 {[%clk 0:00:44]}  Ka2 {[%clk 0:00:22]} 77. Kc2 {[%clk 0:00:45]}  Ka1 {[%clk 0:00:23]} 78. Ra3# {[%clk 0:00:46]} 1-0

[Event "January 2 Early 2024"]
[Site "https://www.chess.com"]
[Date "2024.01.02"]
[Round "2"]
[White "Rama, Tejas"]
[Black "Bernat, David"]
[Result "0-1"]
[Board "161"]
[TimeControl "180+1"]
[WhiteFideId "30907381"]
[BlackFideId "2099225"]
[WhiteElo "2594"]
[BlackElo "2344"]
[WhiteTeam "USA"]
[BlackTeam "USA"]
[WhiteClock "0:00:23"]
[BlackClock "0:00:41"]

1. d4 {[%clk 0:03:00]}  d5 {[%clk 0:02:59]} 2. c4 {[%clk 0:02:49]}  e5 {[%clk 0:02:59]} 3. dxe5 {[%clk 0:02:49]}  d4 {[%clk 0:03:00]} 4. Nf3 {[%clk 0:02:49]}  Nc6 {[%clk 0:03:01]} 5. Nbd2 {[%clk 0:02:49]}  Nge7 {[%clk 0:03:01]} 6. Nb3 {[%clk 0:02:47]}  Nf5 {[%clk 0:03:01]} 7. g3 {[%clk 0:02:48]}  a5 {[%clk 0:02:58]} 8. Bd2 {[%clk 0:02:41]}  a4 {[%clk 0:02:56]} 9. Nc1 {[%clk 0:02:39]}  Be6 {[%clk 0:02:55]} 10. Bg2 {[%clk 0:02:22]}  Bxc4 {[%clk 0:02:52]} 11. O-O {[%clk 0:02:22]}  Be7 {[%clk 0:02:52]} 12. Qc2 {[%clk 0:02:10]}  Be6 {[%clk 0:02:52]} 13. Nd3 {[%clk 0:02:01]}  O-O {[%clk 0:02:41]} 14. Nc5 {[%clk 0:01:37]}  Bxc5 {[%clk 0:02:24]} 15. Qxc5 {[%clk 0:01:37]}  Qe7 {[%clk 0:02:09]} 16. Rac1 {[%clk 0:01:28]}  Qxc5 {[%clk 0:02:05]} 17. Rxc5 {[%clk 0:01:29]}  Bxa2 {[%clk 0:02:04]} 18. Bf4 {[%clk 0:01:01]}  Ra6 {[%clk 0:01:54]} 19. Rb5 {[%clk 0:00:55]}  Rb6 {[%clk 0:01:20]} 20. Rxb6 {[%clk 0:00:55]}  cxb6 {[%clk 0:01:21]} 21. Ra1 {[%clk 0:00:49]}  Bb3 {[%clk 0:01:18]} 22. Nd2 {[%clk 0:00:49]}  Bc2 {[%clk 0:01:09]} 23. Bxc6 {[%clk 0:00:34]}  bxc6 {[%clk 0:01:10]} 24. Rc1 {[%clk 0:00:34]}  d3 {[%clk 0:01:01]} 25. exd3 {[%clk 0:00:34]}  Bxd3 {[%clk 0:01:02]} 26. Rxc6 {[%clk 0:00:33]}  b5 {[%clk 0:01:03]} 27. g4 {[%clk 0:00:27]}  Nd4 {[%clk 0:01:03]} 28. Rd6 {[%clk 0:00:21]}  Ne2+ {[%clk 0:00:59]} 29. Kg2 {[%clk 0:00:22]}  Nxf4+ {[%clk 0:01:00]} 30. Kf3 {[%clk 0:00:22]}  Ng6 {[%clk 0:00:59]} 31. Rxd3 {[%clk 0:00:20]}  Nxe5+ {[%clk 0:01:00]} 32. Ke4 {[%clk 0:00:21]}  Nxd3 {[%clk 0:01:00]} 33. Kxd3 {[%clk 0:00:22]}  Rd8+ {[%clk 0:00:59]} 34. Kc3 {[%clk 0:00:23]}  b4+ {[%clk 0:00:58]} 35. Kc2 {[%clk 0:00:22]}  Rxd2+ {[%clk 0:00:45]} 36. Kxd2 {[%clk 0:00:21]}  f6 {[%clk 0:00:45]} 37. Kd3 {[%clk 0:00:21]}  a3 {[%clk 0:00:43]} 38. bxa3 {[%clk 0:00:21]}  bxa3 {[%clk 0:00:44]} 39. Kc3 {[%clk 0:00:21]}  Kf7 {[%clk 0:00:43]} 40. Kb3 {[%clk 0:00:22]}  Ke6 {[%clk 0:00:43]} 41. Kxa3 {[%clk 0:00:22]}  Ke5 {[%clk 0:00:44]} 42. Kb4 {[%clk 0:00:22]}  Kf4 {[%clk 0:00:44]} 43. h3 {[%clk 0:00:23]}  Kf3 {[%clk 0:00:45]} 44. Kc5 {[%clk 0:00:23]}  Kxf2 {[%clk 0:00:45]} 45. Kd5 {[%clk 0:00:24]}  Kg3 {[%clk 0:00:45]} 46. Ke6 {[%clk 0:00:24]}  Kxh3 {[%clk 0:00:46]} 47. Kf5 {[%clk 0:00:25]}  Kh4 {[%clk 0:00:42]} 48. Kf4 {[%clk 0:00:25]}  g6 {[%clk 0:00:41]} 49. Kf3 {[%clk 0:00:23]}  g5 {[%clk 0:00:41]} 0-1